bitfinex/quotes_ETHUSD_20250722
["timestamp","ask_amount","ask_price","bid_price","bid_amount"]
[1753146921066,0.002,3723.9,3723.8,3.11532886]
[1753146921273,0.002,3723.9,3723.8,4.03642886]
[1753146922144,0.002,3723.9,3723.8,4.90471865]
[1753146923096,0.002,3723.9,3723.8,1.351]
[1753146923300,0.002,3723.9,3723.8,0.9211]
[1753146923443,0.002,3723.9,3723.8,1.351]
[1753146923647,2.6137,3723.9,3720.8,0.8254]
[1753146923844,2.6137,3723.9,3720.6,0.005]
[1753146923845,2.68665538,3722.1,3720.6,0.005]
[1753146924051,6.98915646,3722.2,3720.6,0.005]
[1753146924052,7.485,3722.0,3720.6,0.005]
[1753146924353,2.68766629,3720.7,3720.6,0.005]
[1753146925384,3.14336629,3720.7,3720.6,0.005]
[1753146925757,2.68765884,3720.8,3720.6,0.005]
[1753146925965,2.68759414,3720.8,3720.6,0.005]
[1753146926185,4.482,3721.1,3720.6,0.005]
[1753146926526,3.14336629,3720.7,3720.6,0.005]
[1753146927458,7.63136629,3720.7,3720.6,0.005]
[1753146928082,4.485,3720.7,3720.6,0.005]
[1753146928280,7.17266629,3720.7,3720.6,0.005]
[1753146928492,0.4557,3721.4,3720.6,0.005]
[1753146928662,2.68766629,3720.7,3720.6,0.005]
[1753146928863,2.68760198,3720.8,3720.6,0.005]
[1753146929199,2.68766629,3720.7,3720.6,0.005]
[1753146929415,3.14336629,3720.7,3720.6,0.005]
[1753146929772,2.68766629,3720.7,3720.6,0.005]
[1753146930336,3.14336629,3720.7,3720.6,0.005]
[1753146931077,0.4557,3721.2,3720.6,0.005]
[1753146931277,7.16118162,3721.4,3720.7,2.68766629]
[1753146931479,7.16118162,3721.4,3720.6,0.4349]
[1753146931480,2.68738555,3721.1,3720.6,0.005]
[1753146931707,4.475,3721.4,3720.6,0.005]
[1753146931911,2.6874015,3721.1,3720.6,0.005]
[1753146932112,2.68766621,3720.8,3720.6,0.005]
[1753146932314,4.475,3721.4,3720.6,0.005]
[1753146932315,2.68766629,3720.7,3720.6,0.005]
[1753146934624,7.16161576,3720.8,3720.6,0.005]
[1753146934785,7.15457558,3720.9,3720.6,0.005]
[1753146935180,3.49373563,3721.9,3720.6,0.005]
[1753146935413,2.68564488,3723.6,3720.6,0.4349]
[1753146935414,0.1336,3721.0,3720.6,0.4349]
[1753146935613,0.1336,3721.0,3720.6,0.005]
[1753146935815,2.82126629,3720.7,3720.6,0.005]
[1753146937002,0.1336,3720.7,3720.6,0.005]
[1753146937205,2.82126629,3720.7,3720.6,0.005]
[1753146937828,3.27696629,3720.7,3720.6,0.005]
[1753146938600,0.1336,3720.7,3720.6,0.005]
[1753146938800,2.9583,3720.6,3716.9,0.7676]
[1753146939113,0.8023,3717.8,3716.3,0.7676]
[1753146939312,0.1344,3716.6,3716.4,0.4299]
[1753146939512,0.1344,3716.6,3716.5,3.12060361]
[1753146939837,0.1344,3716.9,3716.8,2.69042807]
[1753146940036,0.1344,3717.2,3716.5,0.79230421]
[1753146940237,0.1344,3717.2,3716.5,0.1344]
[1753146940423,2.68961807,3718.0,3716.3,0.7676]
[1753146940732,2.69030007,3717.1,3716.4,4.63]
[1753146940920,0.02688189,3717.0,3716.3,0.7676]
[1753146941236,2.68983511,3717.7,3716.3,0.7676]
[1753146941436,2.68997982,3717.5,3716.3,0.7676]
[1753146941634,2.69012455,3717.3,3716.3,0.7676]
[1753146941798,0.02688189,3717.2,3715.8,0.7676]
[1753146941996,2.69043715,3716.9,3715.8,0.7676]
[1753146942197,0.02688189,3716.8,3716.2,2.69088004]
[1753146942403,0.02688189,3716.8,3716.0,2.69105639]
[1753146942625,0.02688189,3716.8,3715.6,5.1469]
[1753146942842,2.69080189,3716.4,3715.6,4.717]
[1753146943038,0.02688189,3716.8,3715.5,4.718]
[1753146943039,2.71778828,3716.3,3715.5,4.718]
[1753146943341,0.02688189,3716.3,3715.7,2.69126685]
[1753146943542,0.02688189,3716.3,3715.4,4.716]
[1753146943711,0.02688189,3716.3,3715.4,5.23159]
[1753146944061,0.02688189,3716.5,3715.8,2.69118058]
[1753146944240,2.71759145,3716.5,3715.2,3.12149858]
[1753146944456,0.02688189,3716.5,3715.2,0.4299]
[1753146944759,0.4557,3716.4,3714.7,0.7676]
[1753146944903,2.69094585,3716.2,3714.9,2.69182227]
[1753146945237,0.7761,3716.0,3714.9,2.69186249]
[1753146945452,0.7761,3716.0,3714.8,0.38896313]
[1753146945453,0.02688189,3715.9,3714.8,5.09796313]
[1753146945655,0.02688189,3715.9,3714.8,2.69188141]
[1753146945825,0.02688189,3715.9,3714.7,4.708]
[1753146946212,0.02688189,3715.9,3714.6,2.6920799]
[1753146946413,3.1469105,3715.8,3714.4,4.711]
[1753146946706,3.1469105,3715.8,3714.2,5.9333]
[1753146946707,2.69135536,3715.6,3714.2,5.9333]
[1753146946910,0.4557,3715.8,3715.2,2.69158496]
[1753146947105,2.69163314,3715.3,3714.3,4.711]
[1753146947330,0.02688189,3715.2,3714.3,4.711]
[1753146947531,2.69180987,3715.0,3714.2,8.19675181]
[1753146947731,0.02688189,3714.9,3714.1,0.02]
[1753146947946,2.71876321,3714.9,3714.1,0.02]
[1753146948145,2.71876195,3714.9,3714.2,2.69234758]
[1753146948311,1.2218,3714.8,3714.1,0.02]
[1753146948511,0.02688189,3714.7,3714.1,0.02]
[1753146948712,0.02688189,3715.1,3714.8,0.001]
[1753146948913,0.46468189,3715.1,3714.8,0.001]
[1753146949108,0.02688189,3715.1,3713.4,6.98915646]
[1753146949342,0.4378,3715.0,3713.1,4.736]
[1753146949545,0.02688189,3714.9,3714.6,2.69207368]
[1753146949731,0.02688189,3714.9,3713.7,2.69268414]
[1753146949932,2.71876504,3714.9,3714.1,2.69242273]
[1753146950138,2.71876504,3714.9,3713.3,0.001]
[1753146950139,0.02688189,3714.9,3713.3,0.001]
[1753146950337,0.1344,3714.2,3713.7,2.69268088]
[1753146950653,0.1344,3713.7,3713.6,2.69280482]
[1753146951246,0.02688189,3714.1,3713.6,2.69274797]
[1753146951417,0.1344,3713.8,3713.3,0.001]
[1753146951618,0.02688189,3714.6,3713.3,0.001]
[1753146951619,0.4378,3714.3,3713.3,0.001]
[1753146951842,0.02688189,3714.2,3713.8,2.6926598]
[1753146952040,0.1344,3714.2,3714.1,2.69244231]
[1753146952243,0.1344,3714.2,3713.5,0.02692877]
[1753146952449,0.02688189,3714.1,3713.3,0.001]
[1753146952862,0.02688189,3714.1,3713.5,2.6928677]
[1753146953063,0.02688189,3714.1,3713.3,0.001]
[1753146953481,0.784,3713.9,3713.3,0.001]
[1753146953766,2.69278942,3713.7,3713.3,0.001]
[1753146954059,0.02688189,3713.8,3713.3,0.001]
[1753146954060,0.02688189,3713.6,3713.3,0.001]
[1753146954226,0.46468189,3713.6,3713.3,0.001]
[1753146954426,3.15750799,3713.6,3713.3,0.001]
[1753146954626,0.46468189,3713.6,3713.3,0.001]
[1753146955075,3.15751001,3713.6,3713.3,0.001]
[1753146955283,0.46468189,3713.6,3713.3,0.001]
[1753146955491,0.02688189,3713.6,3713.3,0.001]
[1753146955648,0.02688189,3713.8,3713.5,2.69282734]
[1753146955830,0.02688189,3713.8,3713.3,2.6940031]
[1753146955831,0.02688189,3713.8,3713.6,2.69279723]
[1753146956159,0.8177,3714.4,3713.3,0.001]
[1753146956160,2.69243478,3714.2,3713.3,0.001]
[1753146956362,2.6925148,3714.0,3713.3,0.001]
[1753146956627,2.6927329,3713.7,3713.3,0.001]
[1753146956744,0.02688189,3713.6,3713.3,0.001]
[1753146957273,0.02688189,3714.0,3713.4,2.69290296]
[1753146957471,2.69278383,3713.7,3713.3,0.001]
[1753146957770,0.02688189,3713.6,3713.3,0.001]
[1753146957958,3.15749565,3713.6,3713.3,0.001]
[1753146958155,0.02688189,3713.6,3713.3,0.001]
[1753146958356,0.4378,3713.5,3713.3,0.001]
[1753146958574,2.71983174,3713.4,3713.3,0.001]
[1753146958784,3.15763174,3713.4,3713.3,0.001]
[1753146959090,3.98203174,3713.4,3713.3,0.001]
[1753146959377,1.28908189,3713.4,3713.3,0.001]
[1753146959535,0.02688189,3713.4,3713.3,0.001]
[1753146959876,0.8244,3713.9,3713.3,0.001]
[1753146960080,0.02688189,3713.8,3713.3,0.001]
[1753146960284,0.02688189,3713.8,3713.7,2.69273231]
[1753146960497,0.02688189,3714.1,3713.7,1.00955515]
[1753146960650,0.23952959,3714.4,3713.7,0.471]
[1753146960850,0.26641148,3714.3,3713.7,0.471]
[1753146961050,0.02688189,3714.3,3714.1,2.69238387]
[1753146961287,0.02688189,3714.4,3714.2,2.69231313]
[1753146961493,0.23960479,3714.3,3714.2,2.69236982]
[1753146961649,0.23960479,3714.8,3713.6,0.7654]
[1753146961849,2.69216221,3714.5,3713.6,3.45817747]
[1753146962154,0.7885,3714.3,3713.3,0.001]
[1753146962465,0.1344,3713.4,3713.3,2.69402237]
[1753146962667,3.48079947,3714.3,3713.3,2.69402237]
[1753146962668,0.23960479,3714.1,3714.0,2.6925148]
[1753146962879,0.26648668,3714.9,3714.2,0.805]
[1753146963093,0.23960479,3714.8,3714.2,0.805]
[1753146963249,0.1344,3714.2,3713.7,0.805]
[1753146963448,0.1344,3714.2,3714.0,2.69248527]
[1753146963651,0.1344,3714.2,3714.1,2.69244231]
[1753146964151,0.1344,3714.2,3714.1,3.16344231]
[1753146964488,0.1344,3714.2,3714.1,0.471]
[1753146964666,0.1344,3714.2,3714.1,3.16344231]
[1753146964855,0.1344,3714.2,3714.1,3.81020913]
[1753146965662,0.1344,3714.6,3714.4,2.69222042]
[1753146965859,0.1344,3714.6,3714.3,2.69224599]
[1753146966057,0.4378,3715.3,3714.1,0.471]
[1753146966058,0.1344,3714.4,3714.1,0.471]
[1753146966312,0.1344,3714.4,3714.0,2.6924691]
[1753146966313,0.1344,3714.4,3714.3,2.69229733]
[1753146966515,0.02688189,3715.2,3714.2,0.471]
[1753146966797,0.1344,3714.6,3714.5,2.69213423]
[1753146966955,0.1344,3714.6,3714.5,3.16313423]
[1753146967471,0.1344,3714.6,3714.1,4.688]
[1753146967669,0.02688189,3715.3,3714.1,0.85975384]
[1753146967879,0.1344,3714.1,3713.6,4.686]
[1753146968079,2.71935394,3714.1,3713.6,4.686]
[1753146968374,2.71935394,3714.1,3713.3,0.8464]
[1753146968375,0.1344,3713.8,3713.3,0.8464]
[1753146968892,2.82734985,3713.4,3713.3,0.001]
[1753146969190,2.69308364,3713.3,3712.8,0.82648]
[1753146969370,0.1344,3713.1,3712.6,4.682]
[1753146969566,0.1344,3712.9,3712.2,0.1384]
[1753146969767,2.69353014,3712.6,3712.2,0.004]
[1753146970371,0.24249144,3712.6,3712.2,0.004]
[1753146970768,0.24249144,3712.6,3712.4,2.69362449]
[1753146970960,0.24249144,3712.6,3712.5,2.69460269]
[1753146971297,0.37689144,3712.6,3712.5,10.69409258]
[1753146971507,1.00963915,3714.2,3713.1,2.69316743]
[1753146971508,0.24249144,3713.2,3713.1,2.69316743]
[1753146971796,0.1344,3713.4,3713.3,2.69302237]
[1753146972211,0.1344,3713.4,3713.3,2.71995259]
[1753146972354,0.1344,3713.4,3713.3,3.96945259]
[1753146972558,6.459,3714.6,3713.3,0.7785]
[1753146972559,0.1344,3713.8,3713.3,0.7785]
[1753146972857,0.1344,3713.5,3713.4,3.16393289]
[1753146973055,0.1344,3713.8,3713.5,2.69287733]
[1753146973279,0.1344,3713.8,3713.7,2.69273231]
[1753146973482,0.37743375,3713.8,3713.3,0.80543022]
[1753146973757,0.1344,3713.8,3713.5,2.69281715]
[1753146973979,0.1344,3713.8,3713.4,0.471]
[1753146974183,0.24302684,3713.7,3713.6,2.6927456]
[1753146974398,0.1344,3713.8,3713.7,2.69273231]
[1753146974988,0.1344,3713.8,3713.7,3.16373231]
[1753146975195,0.19821911,3714.2,3713.7,1.05665533]
[1753146975492,0.1344,3714.0,3713.3,1.52108302]
[1753146975692,0.1344,3714.0,3713.9,2.6925873]
[1753146976064,0.1344,3714.0,3713.3,0.9129]
[1753146976258,0.02688189,3713.9,3713.5,2.69281619]
[1753146976461,2.89714368,3714.2,3713.5,2.69281619]
[1753146976462,0.02688189,3714.1,3713.5,2.69281619]
[1753146976766,0.02688189,3714.1,3713.5,2.69281867]
[1753146976958,2.71934402,3714.1,3713.4,2.69293907]
[1753146977160,0.02688189,3714.1,3713.0,0.02693239]
[1753146977387,0.20476112,3714.2,3713.2,0.55]
[1753146977593,0.02688189,3714.3,3713.3,0.4513]
[1753146977800,0.7724,3714.7,3713.3,0.4513]
[1753146977801,0.02688189,3714.6,3713.3,0.4513]
[1753146977998,0.02688189,3714.6,3713.9,2.69256521]
[1753146978173,0.47448189,3714.6,3713.3,0.4513]
[1753146978373,2.69246528,3714.1,3713.4,2.69288734]
[1753146978577,0.47448189,3714.6,3713.3,0.4513]
[1753146978578,0.02688189,3714.0,3713.3,0.4513]
[1753146978780,6.48603014,3712.6,3712.5,0.001]
[1753146979016,2.69374781,3712.3,3712.0,0.03481]
[1753146979163,2.7206297,3712.3,3712.0,0.03481]
[1753146979497,3.36703041,3712.3,3712.0,0.03481]
[1753146979862,2.91943041,3712.3,3712.0,0.03481]
[1753146980070,0.2256826,3712.3,3712.0,0.03481]
[1753146980296,2.91943041,3712.3,3712.0,0.03481]
[1753146980506,0.02688189,3712.3,3712.0,0.03481]
[1753146980805,2.69374781,3712.3,3712.0,0.03481]
[1753146980967,2.7206297,3712.3,3712.0,0.03481]
[1753146981527,3.1682297,3712.3,3712.0,0.03481]
[1753146982102,8.6427297,3712.3,3712.0,0.03481]
[1753146982311,8.6427297,3712.3,3711.1,1.02]
[1753146982312,3.48704623,3711.2,3711.1,0.095625]
[1753146982479,0.81938189,3711.2,3711.1,0.095625]
[1753146982680,0.02688189,3712.1,3711.1,0.546925]
[1753146982981,0.4476,3712.0,3711.4,0.001]
[1753146983185,2.69432843,3711.5,3711.4,0.001]
[1753146983379,0.02688189,3711.5,3711.4,0.001]
[1753146983785,0.02688189,3711.9,3711.4,0.001]
[1753146983981,0.02688189,3712.1,3711.4,1.2967]
[1753146984183,0.7925,3712.7,3711.7,2.69418068]
[1753146984184,0.02688189,3712.5,3711.7,2.69418068]
[1753146984383,0.02688189,3712.5,3711.5,0.60626455]
[1753146984694,0.02688189,3713.1,3711.6,0.47824255]
[1753146984897,0.02688189,3713.1,3712.0,0.55]
[1753146985080,0.02688189,3713.1,3712.2,0.8444]
[1753146985279,0.02688189,3713.4,3712.3,0.57693747]
[1753146985482,1.03547807,3714.2,3712.6,0.55]
[1753146985483,0.02688189,3713.9,3712.6,0.55]
[1753146985687,3.72788677,3714.2,3712.8,0.55]
[1753146985688,0.02688189,3714.1,3712.8,0.55]
[1753146985906,2.69258864,3713.9,3713.0,2.69323677]
[1753146986095,0.02688189,3713.8,3712.9,7.4322501]
[1753146986290,0.1344,3713.2,3712.8,0.79904565]
[1753146986466,0.1344,3713.2,3712.9,7.43131185]
[1753146986669,0.1344,3713.2,3712.9,4.738]
[1753146986871,0.1344,3713.2,3712.9,5.61961258]
[1753146987085,0.1344,3713.2,3712.9,0.88161258]
[1753146987284,0.1344,3713.2,3712.9,4.734]
[1753146987612,0.1344,3713.2,3713.0,2.69316871]
[1753146987809,0.1344,3713.2,3713.1,2.69316743]
[1753146988171,0.1344,3713.4,3713.3,2.69302237]
[1753146988378,0.1344,3713.4,3713.1,0.47823167]
[1753146988571,0.1344,3713.4,3713.1,1.33519159]
[1753146988874,0.1344,3713.4,3712.8,0.93344565]
[1753146989089,0.4476,3714.1,3712.8,0.93344565]
[1753146989090,0.1344,3713.0,3712.8,4.725]
[1753146989528,0.1344,3713.0,3712.9,2.6933125]
[1753146989820,0.1344,3713.5,3713.1,2.69314969]
[1753146989971,0.1344,3713.5,3713.1,0.82970995]
[1753146990175,0.1344,3713.5,3713.2,4.723]
[1753146990376,0.1344,3713.5,3712.8,0.6844]
[1753146990710,0.1344,3713.5,3713.0,2.69318292]
[1753146991099,0.1344,3713.5,3713.0,3.14448292]
[1753146991301,0.1344,3713.5,3713.1,0.4513]
[1753146991506,0.1344,3713.5,3713.4,2.69294985]
[1753146991812,0.1344,3713.5,3713.4,3.14424985]
[1753146992017,0.55988719,3714.7,3713.5,0.55]
[1753146992216,0.1344,3714.1,3713.6,0.02692804]
[1753146992384,0.002,3714.9,3713.7,8.02811926]
[1753146992579,0.1344,3714.4,3713.8,0.02692659]
[1753146992811,0.1344,3714.4,3713.8,2.6926598]
[1753146993111,0.1344,3714.4,3713.7,8.16251926]
[1753146993314,0.1344,3714.4,3713.8,2.69264596]
[1753146993481,0.16128189,3714.4,3713.8,7.40264772]
[1753146993681,0.1344,3714.4,3714.1,2.69241752]
[1753146994292,0.1344,3714.4,3714.3,2.69229733]
[1753146994694,0.1344,3714.7,3714.3,3.14354675]
[1753146994885,0.1344,3714.7,3714.4,7.87342934]
[1753146995218,0.1344,3714.7,3714.5,2.69215221]
[1753146995415,0.1344,3714.7,3714.5,3.14345221]
[1753146995627,0.1344,3714.7,3714.5,3.14343634]
[1753146995918,0.002,3714.9,3714.8,2.69193496]
[1753146996094,0.002,3714.9,3714.8,7.38893496]
[1753146996421,0.002,3714.9,3714.1,0.4513]
[1753146996587,2.69390997,3714.9,3714.4,4.696]
[1753146996917,2.6920131,3714.7,3713.9,3.47676413]
[1753146997110,0.02688189,3714.6,3714.0,4.694]
[1753146997415,0.02688189,3714.6,3714.0,4.644]
[1753146997614,2.69206084,3714.7,3713.9,0.7842]
[1753146997819,0.02688189,3714.6,3714.0,4.69]
[1753146998028,2.69223022,3714.4,3713.9,0.7842]
[1753146998324,2.69215816,3714.5,3714.0,4.686]
[1753146998544,2.69230558,3714.3,3713.9,0.7842]
[1753146998832,2.69269214,3713.8,3713.6,4.686]
[1753146999003,2.69265474,3713.9,3713.2,3.48355226]
[1753146999329,2.69273231,3713.7,3713.2,4.684]
[1753146999524,0.02688189,3713.6,3713.3,4.684]
[1753146999830,2.6928743,3713.6,3713.2,4.683]
[1753146999997,0.02688189,3713.5,3713.2,4.683]
[1753147000194,0.02688189,3713.5,3712.5,0.8296]
[1753147000195,0.02688189,3713.8,3712.5,0.8296]
[1753147000531,2.69328961,3713.0,3712.6,4.68]
[1753147000692,2.6930331,3713.3,3712.6,7.3735063]
[1753147000894,2.71998187,3713.2,3712.6,4.68]
[1753147001090,2.71998187,3713.2,3712.6,7.37352248]
[1753147001418,0.02688189,3713.2,3712.6,7.37352576]
[1753147001732,0.02688189,3713.2,3712.6,4.678]
[1753147001733,2.69316743,3713.1,3712.6,4.678]
[1753147002027,2.69343196,3712.8,3712.1,2.69388706]
[1753147002228,2.69381995,3712.3,3711.6,3.14550479]
[1753147002530,2.72057561,3712.4,3712.0,4.676]
[1753147002825,2.72057213,3712.4,3711.7,2.69416821]
[1753147003128,2.69394921,3712.1,3711.8,4.674]
[1753147003430,2.6935534,3712.6,3711.9,0.4674]
[1753147003630,0.02688189,3712.9,3712.2,2.69376394]
[1753147003820,0.02688189,3712.9,3711.9,0.4674]
[1753147004019,2.69350459,3712.7,3712.0,4.671]
[1753147004211,2.69350459,3712.7,3712.0,7.36496149]
[1753147004404,2.72047331,3712.6,3711.6,9.68334577]
[1753147004712,2.72047654,3712.6,3711.7,4.671]
[1753147004895,0.02688189,3712.6,3711.8,4.668]
[1753147005099,0.02688189,3712.6,3711.4,0.001]
[1753147005295,2.69385932,3712.2,3711.5,7.36031915]
[1753147005538,0.02688189,3712.1,3711.5,4.664]
[1753147005734,2.69396572,3712.0,3711.5,4.664]
[1753147005941,0.02688189,3711.9,3711.5,4.664]
[1753147006315,0.4476,3712.6,3711.5,4.664]
[1753147006316,2.69397814,3712.0,3711.5,4.664]
[1753147006516,0.4476,3712.6,3711.5,4.664]
[1753147006517,0.1344,3711.7,3711.5,4.664]
[1753147006711,0.1344,3711.7,3711.5,7.35831893]
[1753147006907,0.1344,3711.7,3711.6,2.69425584]
[1753147008205,0.4612,3713.0,3711.6,5.11804255]
[1753147008410,0.1344,3712.2,3711.6,4.7864]
[1753147008635,0.1344,3712.2,3711.8,2.69409377]
[1753147008934,0.1344,3711.9,3711.8,2.69409174]
[1753147009908,0.1344,3711.9,3711.6,2.69419196]
[1753147010117,0.1344,3711.9,3711.5,4.651]
[1753147010604,0.1344,3711.9,3711.4,0.001]
[1753147010909,2.69419698,3711.7,3711.4,4.645]
[1753147011122,0.4612,3712.3,3711.4,4.643]
[1753147011123,0.1344,3711.5,3711.4,4.643]
[1753147011439,2.82872843,3711.5,3711.4,4.643]
[1753147012135,2.82872843,3711.5,3711.4,0.001]
[1753147012337,3.28992843,3711.5,3711.4,0.001]
[1753147012917,0.1344,3711.5,3711.4,0.001]
[1753147013642,4.635,3712.4,3711.4,0.001]
[1753147013643,0.02688189,3712.3,3711.4,0.001]
[1753147013822,0.1344,3711.7,3711.4,0.4401]
[1753147014024,0.1344,3711.7,3711.4,3.52173475]
[1753147014223,0.1344,3711.7,3711.6,2.69425584]
[1753147014656,0.1344,3711.7,3711.6,3.13335584]
[1753147014835,0.1344,3711.9,3711.6,0.46604255]
[1753147015359,0.1344,3711.9,3711.6,0.02694255]
[1753147015556,0.22753666,3712.3,3711.4,0.001]
[1753147015874,0.1344,3711.6,3711.4,0.001]
[1753147016224,0.1344,3711.6,3711.4,0.4401]
[1753147016523,0.1344,3711.6,3711.4,3.13447014]
[1753147016721,0.1344,3711.6,3711.4,0.4401]
[1753147017032,0.1344,3711.6,3711.4,0.001]
[1753147017758,2.69432843,3711.5,3711.4,0.001]
[1753147018453,2.69427931,3711.6,3711.4,0.001]
[1753147018783,2.69432843,3711.5,3711.4,0.001]
[1753147018921,2.72121032,3711.5,3711.4,0.001]
[1753147019126,2.69418584,3711.7,3711.4,0.001]
[1753147019348,2.69432843,3711.5,3711.4,0.001]
[1753147019623,0.02688189,3712.2,3711.4,0.001]
[1753147019818,0.1344,3711.5,3711.4,0.001]
[1753147020476,0.1344,3712.0,3711.5,0.8095]
[1753147020695,0.8052,3713.0,3711.6,0.46604255]
[1753147020854,0.1344,3712.3,3712.1,2.69388665]
[1753147021038,0.1344,3712.3,3712.0,2.69394026]
[1753147021234,0.1344,3712.3,3711.7,0.1344]
[1753147021466,2.69403865,3711.9,3711.5,0.8095]
[1753147021679,2.69363755,3712.5,3711.4,0.001]
[1753147021680,2.69432843,3711.5,3711.4,0.001]
[1753147021870,2.82872843,3711.5,3711.4,0.001]
[1753147022475,0.1344,3711.5,3711.4,0.001]
[1753147023285,0.4612,3711.5,3711.4,0.001]
[1753147023590,3.15552843,3711.5,3711.4,0.001]
[1753147023799,3.18241032,3711.5,3711.4,0.001]
[1753147024560,2.69418703,3711.7,3711.4,0.001]
[1753147024843,2.69432843,3711.5,3711.4,0.001]
[1753147025043,3.56642843,3711.5,3711.4,0.001]
[1753147025240,3.56642843,3711.5,3711.1,1e-08]
[1753147025241,3.56664623,3711.2,3711.1,1e-08]
[1753147025440,3.56737249,3710.2,3710.1,0.02]
[1753147025647,3.59425438,3710.2,3710.1,0.02]
[1753147025851,0.02688189,3710.2,3710.1,0.02]
[1753147026083,2.69527249,3710.2,3710.1,0.02]
[1753147026747,3.15647249,3710.2,3710.1,0.02]
[1753147027970,2.69527249,3710.2,3710.1,0.02]
[1753147028353,3.97267249,3710.2,3710.1,0.02]
[1753147029081,0.1982296,3710.4,3710.1,0.02]
[1753147029287,2.69527249,3710.2,3710.1,0.02]
[1753147029777,3.15647249,3710.2,3710.1,0.02]
[1753147029965,2.69527249,3710.2,3710.1,0.02]
[1753147030279,3.15647249,3710.2,3710.1,0.02]
[1753147030486,7.79435438,3710.2,3710.1,0.02]
[1753147030646,3.15647249,3710.2,3710.1,0.02]
[1753147030980,7.79435438,3710.2,3710.1,0.02]
[1753147031183,3.15647249,3710.2,3710.1,0.02]
[1753147031382,7.79135438,3710.2,3710.1,0.02]
[1753147031584,7.76447249,3710.2,3710.1,0.02]
[1753147032447,3.15647249,3710.2,3710.1,0.02]
[1753147032652,7.78735438,3710.2,3710.1,0.02]
[1753147032860,7.76047249,3710.2,3710.1,0.02]
[1753147033261,7.75547249,3710.2,3710.1,0.02]
[1753147033564,2.6957811,3709.5,3709.4,0.67460381]
[1753147033882,7.2947811,3709.5,3709.4,0.67460381]
[1753147034190,2.72225431,3710.1,3709.4,0.67460381]
[1753147034191,7.29272407,3709.6,3709.4,0.67460381]
[1753147034381,2.8301811,3709.5,3709.4,0.67460381]
[1753147035285,3.31826299,3709.5,3709.4,0.67460381]
[1753147035691,3.31826299,3709.5,3709.1,0.02]
[1753147035692,2.69599913,3709.2,3709.1,0.02]
[1753147035891,2.72288102,3709.2,3709.1,0.02]
[1753147036072,3.18408102,3709.2,3709.1,0.02]
[1753147036254,7.77608102,3709.2,3709.1,0.02]
[1753147036458,3.15719913,3709.2,3709.1,0.02]
[1753147036658,3.15719913,3709.2,3708.1,0.02]
[1753147036659,2.69672617,3708.2,3708.1,0.02]
[1753147036859,7.28672617,3708.2,3708.1,0.02]
[1753147037278,7.74952617,3708.2,3708.1,0.02]
[1753147037481,7.74952617,3708.2,3707.0,1.18293553]
[1753147037482,2.69679889,3708.1,3707.0,1.0456]
[1753147037695,0.03371089,3708.0,3707.1,0.45547519]
[1753147037913,0.4144355,3710.0,3707.1,0.45547519]
[1753147037914,0.03370089,3709.1,3707.8,3.8458]
[1753147038129,4.595,3709.9,3708.1,0.8458]
[1753147038429,2.69606309,3709.2,3707.5,0.8458]
[1753147038698,4.63270089,3709.1,3707.9,9.5280044]
[1753147038922,0.03369908,3709.3,3708.4,9.5280044]
[1753147039063,0.03369544,3709.7,3709.1,2.69601811]
[1753147039258,0.03369544,3709.7,3708.5,3.13840802]
[1753147039259,0.03369544,3709.7,3708.5,0.4419]
[1753147039501,0.03369181,3710.1,3709.4,2.69582632]
[1753147039700,2.69472888,3711.0,3709.4,2.69582632]
[1753147039701,0.03368636,3710.7,3710.0,2.69541778]
[1753147039903,0.03368273,3711.1,3710.4,2.69512116]
[1753147040196,2.69443033,3711.4,3710.7,2.6948947]
[1753147040197,0.03368001,3711.4,3710.7,2.6948947]
[1753147040396,0.03367819,3711.6,3711.0,2.69463142]
[1753147040600,0.03367819,3711.6,3710.5,0.4419]
[1753147041179,2.69446888,3711.4,3710.6,2.69497464]
[1753147041372,0.03368092,3711.3,3710.5,0.4419]
[1753147041676,2.69447363,3711.3,3710.0,0.4419]
[1753147041878,0.49648182,3711.2,3709.9,0.8114]
[1753147042196,2.69539735,3710.1,3709.4,0.849]
[1753147042383,0.03369272,3710.0,3709.0,0.4419]
[1753147042589,7.04658249,3708.8,3707.3,0.001]
[1753147042788,0.7928,3706.4,3705.0,50.0]
[1753147043003,1.2556,3706.3,3705.0,50.0]
[1753147043521,0.0337218,3706.8,3705.0,50.0]
[1753147043522,0.4965218,3706.8,3705.0,50.0]
[1753147043821,0.4965218,3706.8,3705.7,7.26548264]
[1753147043822,0.0337218,3706.8,3705.7,7.26548264]
[1753147044021,0.0337218,3706.8,3705.8,0.01359522]
[1753147044337,1.617,3708.9,3705.7,4.56697658]
[1753147044338,0.0337118,3707.9,3706.6,2.69789024]
[1753147044479,0.0337118,3707.9,3707.0,2.69759913]
[1753147044680,0.03370907,3708.2,3707.1,0.01357665]
[1753147044879,0.03370271,3708.9,3707.1,0.01357665]
[1753147045228,0.03370362,3708.8,3707.3,0.55]
[1753147045430,0.03369726,3709.5,3709.3,2.69587531]
[1753147045586,0.556589,3710.1,3708.8,0.866]
[1753147045587,0.03369272,3710.0,3708.8,0.866]
[1753147045787,2.69567833,3709.7,3708.9,0.01354174]
[1753147046142,4.70369635,3709.6,3707.7,0.8034]
[1753147046419,1.2565,3709.5,3707.7,0.8034]
[1753147046750,4.71969817,3709.4,3707.8,0.01355738]
[1753147046878,0.1344,3708.1,3707.4,0.1344]
[1753147047083,0.1344,3707.7,3706.8,0.1344]
[1753147047278,0.1344,3707.4,3706.8,0.1344]
[1753147047625,2.73073435,3707.8,3706.3,2.69805985]
[1753147047824,2.73073435,3707.8,3706.2,0.08317923]
[1753147047825,0.1344,3706.5,3706.2,0.08317923]
[1753147048327,0.4628,3706.4,3706.2,0.08317923]
[1753147048496,0.49652635,3706.3,3706.2,0.08317923]
[1753147048679,4.688,3706.7,3706.2,0.08317923]
[1753147048876,0.1344,3706.4,3706.2,2.78130985]